[Event "Late-Titled-Tuesday-Blitz-June-25-2024"]
[Site "Chess.com"]
[Date "2024.06.25"]
[Round "6"]
[White "Dedic8"]
[Black "dennisodessa"]
[Result "1-0"]
[WhiteElo "2940"]
[BlackElo "2667"]
[TimeControl "180+1"]
[EndTime "15:05:54 PDT"]
[Termination "Dedic8 won on time"]

1. d4 {[%clk 0:03:00.9]} 1... Nf6 {[%clk 0:02:58.2]} 2. c4 {[%clk 0:03:01.2]}
2... e6 {[%clk 0:02:58]} 3. Nc3 {[%clk 0:03:01.5]} 3... Bb4 {[%clk 0:02:58.9]}
4. e3 {[%clk 0:03:02]} 4... b6 {[%clk 0:02:59.1]} 5. Ne2 {[%clk 0:02:59]} 5...
Bb7 {[%clk 0:02:59.5]} 6. a3 {[%clk 0:02:55.3]} 6... Bd6 {[%clk 0:02:59.6]} 7.
Ng3 {[%clk 0:02:48.3]} 7... O-O {[%clk 0:02:58.1]} 8. f3 {[%clk 0:02:45.4]} 8...
Qe7 {[%clk 0:02:55.6]} 9. Bd3 {[%clk 0:02:43.4]} 9... a5 {[%clk 0:02:51]} 10. e4
{[%clk 0:02:42.3]} 10... Bxg3+ {[%clk 0:02:50.7]} 11. hxg3 {[%clk 0:02:42.4]}
11... e5 {[%clk 0:02:51.5]} 12. d5 {[%clk 0:02:40.2]} 12... Na6 {[%clk
0:02:49.8]} 13. g4 {[%clk 0:02:38.3]} 13... Nc5 {[%clk 0:02:41]} 14. Bc2 {[%clk
0:02:38.4]} 14... d6 {[%clk 0:02:34.7]} 15. Bg5 {[%clk 0:02:13.8]} 15... Ncd7
{[%clk 0:02:20.4]} 16. Ne2 {[%clk 0:02:12.9]} 16... h6 {[%clk 0:02:18.4]} 17.
Bh4 {[%clk 0:02:00.7]} 17... Qe8 {[%clk 0:02:09.8]} 18. Ng3 {[%clk 0:01:50.3]}
18... Nh7 {[%clk 0:02:09.5]} 19. Nf5 {[%clk 0:01:49.3]} 19... Bc8 {[%clk
0:01:52.4]} 20. Be7 {[%clk 0:01:44.5]} 20... Nc5 {[%clk 0:01:44.5]} 21. Bxf8
{[%clk 0:01:43.7]} 21... Qxf8 {[%clk 0:01:45.3]} 22. Qd2 {[%clk 0:01:41.8]}
22... Bxf5 {[%clk 0:01:44.1]} 23. gxf5 {[%clk 0:01:40.6]} 23... a4 {[%clk
0:01:44.9]} 24. O-O-O {[%clk 0:01:21.4]} 24... Rb8 {[%clk 0:01:40]} 25. Qe2
{[%clk 0:01:15.8]} 25... Qe8 {[%clk 0:01:30]} 26. Kb1 {[%clk 0:01:15.5]} 26...
Nf6 {[%clk 0:01:22.7]} 27. Ka2 {[%clk 0:01:09.3]} 27... Nfd7 {[%clk 0:01:17.3]}
28. Bd3 {[%clk 0:01:01.4]} 28... f6 {[%clk 0:01:01.4]} 29. Qe3 {[%clk
0:00:58.3]} 29... Qc8 {[%clk 0:00:55.1]} 30. Be2 {[%clk 0:00:57]} 30... Nb3
{[%clk 0:00:48.2]} 31. Rh2 {[%clk 0:00:52]} 31... Nd4 {[%clk 0:00:46.6]} 32.
Rxd4 {[%clk 0:00:49]} 32... exd4 {[%clk 0:00:47.5]} 33. Qxd4 {[%clk 0:00:49.9]}
33... Nc5 {[%clk 0:00:45.2]} 34. Rh1 {[%clk 0:00:48.2]} 34... Qe8 {[%clk
0:00:43.4]} 35. Re1 {[%clk 0:00:39.7]} 35... Qe5 {[%clk 0:00:38.2]} 36. Qxe5
{[%clk 0:00:35.5]} 36... dxe5 {[%clk 0:00:35.3]} 37. Bd1 {[%clk 0:00:33]} 37...
Kf8 {[%clk 0:00:34]} 38. Kb1 {[%clk 0:00:30.2]} 38... Ke7 {[%clk 0:00:33.8]} 39.
Kc2 {[%clk 0:00:30.4]} 39... Ra8 {[%clk 0:00:31.2]} 40. Kc3 {[%clk 0:00:30.1]}
40... Ra7 {[%clk 0:00:23.6]} 41. Bc2 {[%clk 0:00:30.1]} 41... Ra8 {[%clk
0:00:23.4]} 42. Rh1 {[%clk 0:00:29.6]} 42... Ra7 {[%clk 0:00:21.3]} 43. Kb4
{[%clk 0:00:29.5]} 43... Ra8 {[%clk 0:00:20.6]} 44. Rh3 {[%clk 0:00:29.6]} 44...
Ra7 {[%clk 0:00:16.7]} 45. Rg3 {[%clk 0:00:29.9]} 45... Kf7 {[%clk 0:00:16.2]}
46. Kb5 {[%clk 0:00:29.7]} 46... Nb7 {[%clk 0:00:12.9]} 47. Bxa4 {[%clk
0:00:17.7]} 47... Nd6+ {[%clk 0:00:12.7]} 48. Kb4 {[%clk 0:00:17.7]} 48... Nxc4
{[%clk 0:00:13.6]} 49. b3 {[%clk 0:00:06.7]} 49... Nd6 {[%clk 0:00:03.6]} 50.
Bc6 {[%clk 0:00:06.8]} 50... Kf8 {[%clk 0:00:01.6]} 51. a4 {[%clk 0:00:07.1]}
51... Nc8 {[%clk 0:00:01.1]} 52. Rh3 {[%clk 0:00:06.7]} 52... Ne7 {[%clk
0:00:01.4]} 53. Bb5 {[%clk 0:00:07.1]} 1-0

[Event "Late-Titled-Tuesday-Blitz-June-25-2024"]
[Site "Chess.com"]
[Date "2024.06.25"]
[Round "6"]
[White "Bykov_Egor"]
[Black "ReinisUz"]
[Result "1-0"]
[WhiteElo "2622"]
[BlackElo "2452"]
[TimeControl "180+1"]
[EndTime "15:05:54 PDT"]
[Termination "Bykov_Egor won on time"]

1. Nf3 {[%clk 0:03:00.9]} 1... c5 {[%clk 0:02:59.6]} 2. e3 {[%clk 0:03:00.6]}
2... Nc6 {[%clk 0:02:59.5]} 3. d4 {[%clk 0:03:00.5]} 3... cxd4 {[%clk
0:02:58.6]} 4. exd4 {[%clk 0:03:01.4]} 4... d5 {[%clk 0:02:58.7]} 5. Bb5 {[%clk
0:03:00.9]} 5... Nf6 {[%clk 0:02:58.5]} 6. O-O {[%clk 0:02:58.3]} 6... Bg4
{[%clk 0:02:58.1]} 7. h3 {[%clk 0:02:58.2]} 7... Bh5 {[%clk 0:02:57.9]} 8. g4
{[%clk 0:02:58.1]} 8... Bg6 {[%clk 0:02:58]} 9. Ne5 {[%clk 0:02:58.8]} 9... Qc7
{[%clk 0:02:57.9]} 10. Bf4 {[%clk 0:02:39.2]} 10... Qb6 {[%clk 0:02:57.3]} 11.
c4 {[%clk 0:02:32.6]} 11... e6 {[%clk 0:02:54.2]} 12. Nc3 {[%clk 0:02:21.1]}
12... dxc4 {[%clk 0:02:52.9]} 13. Nxc4 {[%clk 0:02:11.8]} 13... Qd8 {[%clk
0:02:52.5]} 14. Qa4 {[%clk 0:02:00.5]} 14... Be7 {[%clk 0:02:11.7]} 15. Bxc6+
{[%clk 0:01:57.7]} 15... bxc6 {[%clk 0:02:12.6]} 16. Qxc6+ {[%clk 0:01:58.2]}
16... Kf8 {[%clk 0:02:13.2]} 17. Rad1 {[%clk 0:01:07.1]} 17... Rc8 {[%clk
0:02:08.6]} 18. Qa4 {[%clk 0:01:07.6]} 18... h5 {[%clk 0:02:04.1]} 19. g5 {[%clk
0:01:07.5]} 19... Nd5 {[%clk 0:02:02.9]} 20. Nxd5 {[%clk 0:01:03.1]} 20... exd5
{[%clk 0:01:36.3]} 21. Ne5 {[%clk 0:01:03.1]} 21... Bc2 {[%clk 0:01:35.9]} 22.
Qxa7 {[%clk 0:00:45.4]} 22... Bxd1 {[%clk 0:01:23.3]} 23. Rxd1 {[%clk
0:00:46.3]} 23... h4 {[%clk 0:01:03.4]} 24. Rd3 {[%clk 0:00:34.9]} 24... Kg8
{[%clk 0:00:45.2]} 25. g6 {[%clk 0:00:33]} 25... fxg6 {[%clk 0:00:21.6]} 26.
Nxg6 {[%clk 0:00:32.7]} 26... Bf6 {[%clk 0:00:21.5]} 27. Nxh8 {[%clk 0:00:27.3]}
27... Kxh8 {[%clk 0:00:22.4]} 28. Qf7 {[%clk 0:00:25.9]} 28... Rc2 {[%clk
0:00:17.7]} 29. Re3 {[%clk 0:00:22.7]} 29... Rc8 {[%clk 0:00:13.4]} 30. Re6
{[%clk 0:00:15.6]} 30... Bxd4 {[%clk 0:00:08.3]} 31. Be5 {[%clk 0:00:15.5]}
31... Bxe5 {[%clk 0:00:08.3]} 32. Rxe5 {[%clk 0:00:16.4]} 32... Rc6 {[%clk
0:00:08.4]} 33. Rxd5 {[%clk 0:00:14.8]} 33... Rc1+ {[%clk 0:00:06.7]} 34. Kg2
{[%clk 0:00:14.7]} 34... Qa8 {[%clk 0:00:06.9]} 35. Qf3 {[%clk 0:00:13.2]} 35...
Kg8 {[%clk 0:00:04.8]} 36. a3 {[%clk 0:00:12.9]} 36... Rc2 {[%clk 0:00:04.5]}
37. b4 {[%clk 0:00:08]} 37... Ra2 {[%clk 0:00:04.4]} 38. Rd3 {[%clk 0:00:07.9]}
38... Qe8 {[%clk 0:00:03.4]} 39. Qd5+ {[%clk 0:00:08.1]} 39... Kh8 {[%clk
0:00:03.4]} 40. Qxa2 {[%clk 0:00:08.2]} 40... Qg6+ {[%clk 0:00:03.8]} 41. Rg3
{[%clk 0:00:06.1]} 41... hxg3 {[%clk 0:00:03.8]} 42. fxg3 {[%clk 0:00:07]} 42...
Qe4+ {[%clk 0:00:03.9]} 43. Kh2 {[%clk 0:00:07.7]} 43... g5 {[%clk 0:00:03]} 44.
Qb2+ {[%clk 0:00:08]} 44... Kh7 {[%clk 0:00:02.9]} 45. b5 {[%clk 0:00:07.9]}
45... g4 {[%clk 0:00:02.8]} 46. h4 {[%clk 0:00:07.8]} 46... Qd3 {[%clk
0:00:02.9]} 47. b6 {[%clk 0:00:08.1]} 47... Qf1 {[%clk 0:00:03.1]} 48. Qg2
{[%clk 0:00:07.7]} 48... Qb1 {[%clk 0:00:02.5]} 49. b7 {[%clk 0:00:08]} 49...
Kh6 {[%clk 0:00:03]} 50. a4 {[%clk 0:00:08.1]} 50... Qb4 {[%clk 0:00:01.8]} 51.
a5 {[%clk 0:00:07.7]} 51... Kh5 {[%clk 0:00:01]} 52. a6 {[%clk 0:00:08]} 52...
Qb6 {[%clk 0:00:01.1]} 53. Qd2 {[%clk 0:00:05.7]} 1-0

[Event "Late-Titled-Tuesday-Blitz-June-25-2024"]
[Site "Chess.com"]
[Date "2024.06.25"]
[Round "6"]
[White "King_Deded4d5"]
[Black "simaopdias"]
[Result "0-1"]
[WhiteElo "2462"]
[BlackElo "2245"]
[TimeControl "180+1"]
[EndTime "15:05:55 PDT"]
[Termination "simaopdias won by resignation"]

1. e4 {[%clk 0:03:00.9]} 1... c5 {[%clk 0:02:59.6]} 2. Nf3 {[%clk 0:02:59.5]}
2... g6 {[%clk 0:03:00.5]} 3. d4 {[%clk 0:02:57.9]} 3... cxd4 {[%clk 0:03:00.5]}
4. Nxd4 {[%clk 0:02:58.7]} 4... Nc6 {[%clk 0:03:00.9]} 5. c4 {[%clk 0:02:53.1]}
5... Bg7 {[%clk 0:03:01.3]} 6. Be3 {[%clk 0:02:52.6]} 6... Nf6 {[%clk
0:03:01.9]} 7. Nc3 {[%clk 0:02:52.6]} 7... O-O {[%clk 0:03:02.4]} 8. f3 {[%clk
0:02:49.9]} 8... d6 {[%clk 0:03:03]} 9. Qd2 {[%clk 0:02:49.8]} 9... Nxd4 {[%clk
0:03:02.9]} 10. Bxd4 {[%clk 0:02:49.4]} 10... Nd7 {[%clk 0:03:03.8]} 11. Bxg7
{[%clk 0:02:40.4]} 11... Kxg7 {[%clk 0:03:04.7]} 12. Be2 {[%clk 0:02:38.6]}
12... a5 {[%clk 0:03:03.7]} 13. O-O {[%clk 0:02:29.5]} 13... Qb6+ {[%clk
0:03:02.9]} 14. Kh1 {[%clk 0:02:28.2]} 14... Nc5 {[%clk 0:03:03]} 15. Nd5 {[%clk
0:01:57.9]} 15... Qd8 {[%clk 0:03:02.8]} 16. Rfd1 {[%clk 0:01:50.8]} 16... Be6
{[%clk 0:03:01.1]} 17. Rac1 {[%clk 0:01:46.1]} 17... Rc8 {[%clk 0:02:58.4]} 18.
Qc3+ {[%clk 0:01:38.9]} 18... Kg8 {[%clk 0:02:57.8]} 19. b4 {[%clk 0:01:31.3]}
19... axb4 {[%clk 0:02:53.7]} 20. Qxb4 {[%clk 0:01:29.6]} 20... Bxd5 {[%clk
0:02:52]} 21. cxd5 {[%clk 0:01:28.6]} 21... Ra8 {[%clk 0:02:46.9]} 22. a3 {[%clk
0:01:26.5]} 22... Qa5 {[%clk 0:02:44.5]} 23. Qxa5 {[%clk 0:01:08.7]} 23... Rxa5
{[%clk 0:02:45.4]} 24. Rc3 {[%clk 0:01:08.3]} 24... Rfa8 {[%clk 0:02:45.6]} 25.
Ra1 {[%clk 0:01:02.1]} 25... Ra4 {[%clk 0:02:43]} 26. h3 {[%clk 0:01:00.7]}
26... Kg7 {[%clk 0:02:42.8]} 27. Bb5 {[%clk 0:00:58.9]} 27... Rd4 {[%clk
0:02:37.1]} 28. Rc4 {[%clk 0:00:51.8]} 28... Rd2 {[%clk 0:02:32.9]} 29. a4
{[%clk 0:00:49.8]} 29... Ra5 {[%clk 0:02:19.5]} 30. Rb4 {[%clk 0:00:45.9]} 30...
Kf6 {[%clk 0:02:15.7]} 31. Kg1 {[%clk 0:00:43.6]} 31... Ke5 {[%clk 0:02:14.9]}
32. g3 {[%clk 0:00:41.3]} 32... h5 {[%clk 0:02:13.7]} 33. f4+ {[%clk 0:00:38.7]}
33... Kf6 {[%clk 0:02:13.8]} 34. Re1 {[%clk 0:00:25.5]} 34... Ra2 {[%clk
0:01:40.9]} 35. e5+ {[%clk 0:00:25.1]} 35... Kg7 {[%clk 0:01:41]} 36. exd6
{[%clk 0:00:23.6]} 36... exd6 {[%clk 0:01:41.9]} 37. Reb1 {[%clk 0:00:20.4]}
37... Kf6 {[%clk 0:01:36]} 38. Be8 {[%clk 0:00:18.3]} 38... Ke7 {[%clk
0:01:34.2]} 39. Bb5 {[%clk 0:00:16.6]} 39... Kf6 {[%clk 0:01:34.3]} 40. Be8
{[%clk 0:00:15.9]} 40... Rd2 {[%clk 0:01:28.4]} 41. Bb5 {[%clk 0:00:15.1]} 41...
Rxd5 {[%clk 0:01:27.8]} 42. Bc4 {[%clk 0:00:14.2]} 42... Rd4 {[%clk 0:01:24.8]}
43. Bb5 {[%clk 0:00:13.9]} 43... Rd2 {[%clk 0:01:18.4]} 44. R4b2 {[%clk
0:00:11.7]} 44... Rd4 {[%clk 0:01:15.4]} 45. Rb4 {[%clk 0:00:11.7]} 45... Rd5
{[%clk 0:01:15.1]} 46. Bc4 {[%clk 0:00:10.7]} 46... Rd2 {[%clk 0:01:14.6]} 47.
Bb5 {[%clk 0:00:09.9]} 47... Ra8 {[%clk 0:01:13.5]} 48. R4b2 {[%clk 0:00:06.3]}
48... Rd4 {[%clk 0:01:11.2]} 49. Rb4 {[%clk 0:00:05.9]} 49... Rd5 {[%clk
0:01:11.1]} 50. R4b2 {[%clk 0:00:05.5]} 50... Rd4 {[%clk 0:01:06.2]} 51. Rb4
{[%clk 0:00:05.1]} 51... Rxb4 {[%clk 0:01:04.6]} 52. Rxb4 {[%clk 0:00:04.9]}
52... Rc8 {[%clk 0:00:54.5]} 53. Kf2 {[%clk 0:00:04.7]} 53... Rc7 {[%clk
0:00:51.7]} 54. Rd4 {[%clk 0:00:04.7]} 54... Kg7 {[%clk 0:00:49.3]} 55. g4
{[%clk 0:00:04.8]} 55... hxg4 {[%clk 0:00:48.6]} 56. hxg4 {[%clk 0:00:04.7]}
56... Re7 {[%clk 0:00:48.9]} 57. Kf3 {[%clk 0:00:04.9]} 57... Re6 {[%clk
0:00:41.4]} 58. f5 {[%clk 0:00:05.2]} 58... gxf5 {[%clk 0:00:41.1]} 59. gxf5
{[%clk 0:00:06.1]} 59... Rf6 {[%clk 0:00:39.5]} 60. Kf4 {[%clk 0:00:07]} 60...
Ne6+ {[%clk 0:00:38.4]} 61. Ke4 {[%clk 0:00:07.1]} 61... Nxd4 {[%clk 0:00:38.7]}
62. Kxd4 {[%clk 0:00:07.6]} 62... Rxf5 {[%clk 0:00:38.7]} 63. Bd3 {[%clk
0:00:07.9]} 63... Rc5 {[%clk 0:00:38.7]} 0-1

[Event "Late-Titled-Tuesday-Blitz-June-25-2024"]
[Site "Chess.com"]
[Date "2024.06.25"]
[Round "6"]
[White "Chaubunagungamaug1"]
[Black "RandomNoob04"]
[Result "1-0"]
[WhiteElo "2585"]
[BlackElo "2793"]
[TimeControl "180+1"]
[EndTime "15:05:58 PDT"]
[Termination "Chaubunagungamaug1 won on time"]

1. d4 {[%clk 0:03:00.9]} 1... Nf6 {[%clk 0:03:00]} 2. c4 {[%clk 0:03:00.4]} 2...
c5 {[%clk 0:03:00.7]} 3. d5 {[%clk 0:03:00.5]} 3... b5 {[%clk 0:03:01.1]} 4. Qc2
{[%clk 0:02:58.5]} 4... bxc4 {[%clk 0:03:01]} 5. e4 {[%clk 0:02:58.6]} 5... e6
{[%clk 0:03:01.7]} 6. Bxc4 {[%clk 0:02:58.8]} 6... exd5 {[%clk 0:03:02.4]} 7.
exd5 {[%clk 0:02:59.3]} 7... d6 {[%clk 0:03:03.1]} 8. Nc3 {[%clk 0:02:59.7]}
8... Be7 {[%clk 0:03:04]} 9. Nf3 {[%clk 0:03:00.1]} 9... O-O {[%clk 0:03:04.9]}
10. O-O {[%clk 0:03:00.7]} 10... Nbd7 {[%clk 0:03:05.8]} 11. b3 {[%clk
0:02:54.2]} 11... Nb6 {[%clk 0:03:06.7]} 12. h3 {[%clk 0:02:46.9]} 12... Re8
{[%clk 0:03:04.9]} 13. Bf4 {[%clk 0:02:45.9]} 13... h6 {[%clk 0:02:53.5]} 14.
Rfe1 {[%clk 0:02:42.1]} 14... Bf8 {[%clk 0:02:43.6]} 15. Rxe8 {[%clk 0:02:13.8]}
15... Nxe8 {[%clk 0:02:44.5]} 16. Re1 {[%clk 0:02:07.4]} 16... Nc7 {[%clk
0:02:42.6]} 17. Qd3 {[%clk 0:01:57]} 17... Qf6 {[%clk 0:02:34.4]} 18. Bg3 {[%clk
0:01:53.6]} 18... Bf5 {[%clk 0:02:34.4]} 19. Qd2 {[%clk 0:01:27.1]} 19... Re8
{[%clk 0:02:01.9]} 20. Rxe8 {[%clk 0:00:49.9]} 20... Nxe8 {[%clk 0:02:02.8]} 21.
Bh4 {[%clk 0:00:34.1]} 21... Qg6 {[%clk 0:02:02.4]} 22. Kh2 {[%clk 0:00:25.5]}
22... Nc7 {[%clk 0:02:00.2]} 23. Bg3 {[%clk 0:00:22.8]} 23... Nxc4 {[%clk
0:01:29.8]} 24. bxc4 {[%clk 0:00:22.7]} 24... Bd3 {[%clk 0:01:30.4]} 25. Nh4
{[%clk 0:00:15.9]} 25... Qh7 {[%clk 0:01:29.8]} 26. Qb2 {[%clk 0:00:09.3]} 26...
g5 {[%clk 0:00:20.3]} 27. Nf3 {[%clk 0:00:08.7]} 27... Qf5 {[%clk 0:00:20.7]}
28. Qb7 {[%clk 0:00:08.6]} 28... Ne8 {[%clk 0:00:16.3]} 29. Qxa7 {[%clk
0:00:07.1]} 29... Bxc4 {[%clk 0:00:15.7]} 30. Qa8 {[%clk 0:00:03.6]} 30... Nf6
{[%clk 0:00:15.2]} 31. Bxd6 {[%clk 0:00:02.5]} 31... Nd7 {[%clk 0:00:14.6]} 32.
Bxf8 {[%clk 0:00:02.6]} 32... Nxf8 {[%clk 0:00:15.5]} 33. d6 {[%clk 0:00:03.1]}
33... Qf4+ {[%clk 0:00:15.3]} 34. Kg1 {[%clk 0:00:03]} 34... Qxd6 {[%clk
0:00:15.6]} 35. Qe4 {[%clk 0:00:02.7]} 35... Be6 {[%clk 0:00:15.3]} 36. g3
{[%clk 0:00:02.3]} 36... Qa6 {[%clk 0:00:13.2]} 37. Kg2 {[%clk 0:00:01.9]} 37...
Bxa2 {[%clk 0:00:12]} 38. Qf5 {[%clk 0:00:02.2]} 38... Be6 {[%clk 0:00:09]} 39.
Qxc5 {[%clk 0:00:02.4]} 39... Qa8 {[%clk 0:00:09.7]} 40. Qe3 {[%clk 0:00:02.8]}
40... Ng6 {[%clk 0:00:08]} 41. Ne4 {[%clk 0:00:02.7]} 41... Bd5 {[%clk
0:00:07.9]} 42. Nf6+ {[%clk 0:00:02.9]} 42... Kg7 {[%clk 0:00:07.8]} 43. Nxd5
{[%clk 0:00:03.8]} 43... Qxd5 {[%clk 0:00:08.3]} 44. Qd4+ {[%clk 0:00:04.6]}
44... Qxd4 {[%clk 0:00:08.1]} 45. Nxd4 {[%clk 0:00:05.5]} 45... Kf6 {[%clk
0:00:08.8]} 46. Nf3 {[%clk 0:00:06.1]} 46... h5 {[%clk 0:00:08.7]} 47. Nd2
{[%clk 0:00:06.3]} 47... Kg7 {[%clk 0:00:08.2]} 48. Ne4 {[%clk 0:00:06.7]} 48...
Kh6 {[%clk 0:00:08.7]} 49. Nd6 {[%clk 0:00:07]} 49... Kg7 {[%clk 0:00:08]} 50.
Ne4 {[%clk 0:00:07]} 50... f6 {[%clk 0:00:07.6]} 51. Nd6 {[%clk 0:00:07.5]}
51... Ne5 {[%clk 0:00:07.9]} 52. Nf5+ {[%clk 0:00:07.9]} 52... Kg6 {[%clk
0:00:08.6]} 53. Ne3 {[%clk 0:00:08.4]} 53... f5 {[%clk 0:00:08.8]} 54. f4 {[%clk
0:00:08.8]} 54... gxf4 {[%clk 0:00:09.4]} 55. gxf4 {[%clk 0:00:09.7]} 55... Nd3
{[%clk 0:00:09.2]} 56. Kf3 {[%clk 0:00:10.1]} 56... Ne1+ {[%clk 0:00:09.7]} 57.
Ke2 {[%clk 0:00:10.4]} 57... Kf6 {[%clk 0:00:02.7]} 58. Kxe1 {[%clk 0:00:10.6]}
58... Ke6 {[%clk 0:00:03.6]} 59. Ke2 {[%clk 0:00:11.2]} 59... Kd6 {[%clk
0:00:04.2]} 60. Kf3 {[%clk 0:00:11.9]} 60... Kc5 {[%clk 0:00:05.1]} 61. Nxf5
{[%clk 0:00:12.5]} 61... Kd5 {[%clk 0:00:05.4]} 62. Ng7 {[%clk 0:00:13.4]} 1-0

[Event "Late-Titled-Tuesday-Blitz-June-25-2024"]
[Site "Chess.com"]
[Date "2024.06.25"]
[Round "6"]
[White "Onthequiet"]
[Black "konradrutkowski"]
[Result "0-1"]
[WhiteElo "2312"]
[BlackElo "2511"]
[TimeControl "180+1"]
[EndTime "15:06:00 PDT"]
[Termination "konradrutkowski won by checkmate"]

1. d4 {[%clk 0:03:00]} 1... d5 {[%clk 0:02:58.2]} 2. Nf3 {[%clk 0:03:00.3]} 2...
e6 {[%clk 0:02:57]} 3. c4 {[%clk 0:03:00.3]} 3... h6 {[%clk 0:02:56.6]} 4. Nc3
{[%clk 0:03:00.4]} 4... Nf6 {[%clk 0:02:56.8]} 5. Bf4 {[%clk 0:03:00.3]} 5...
Bd6 {[%clk 0:02:56.1]} 6. Bxd6 {[%clk 0:02:58.8]} 6... Qxd6 {[%clk 0:02:57]} 7.
c5 {[%clk 0:02:58.5]} 7... Qe7 {[%clk 0:02:56.4]} 8. e3 {[%clk 0:02:58.1]} 8...
O-O {[%clk 0:02:56]} 9. b4 {[%clk 0:02:56.3]} 9... c6 {[%clk 0:02:53.7]} 10. Be2
{[%clk 0:02:55.6]} 10... Nbd7 {[%clk 0:02:51.3]} 11. Ne5 {[%clk 0:02:54.3]}
11... Nxe5 {[%clk 0:02:46.2]} 12. dxe5 {[%clk 0:02:55.2]} 12... Nd7 {[%clk
0:02:46.8]} 13. f4 {[%clk 0:02:52.5]} 13... b6 {[%clk 0:02:46.9]} 14. O-O {[%clk
0:02:38.6]} 14... bxc5 {[%clk 0:02:45.4]} 15. bxc5 {[%clk 0:02:39.5]} 15... Qxc5
{[%clk 0:02:45]} 16. Qd2 {[%clk 0:02:38.5]} 16... Rb8 {[%clk 0:02:29.3]} 17.
Rfc1 {[%clk 0:02:37.2]} 17... Qe7 {[%clk 0:02:23.3]} 18. e4 {[%clk 0:02:33.7]}
18... f6 {[%clk 0:02:12.3]} 19. f5 {[%clk 0:01:36.6]} 19... Nxe5 {[%clk
0:02:07.5]} 20. fxe6 {[%clk 0:01:36.9]} 20... Bxe6 {[%clk 0:02:07.9]} 21. exd5
{[%clk 0:01:36.5]} 21... cxd5 {[%clk 0:02:04.6]} 22. Nxd5 {[%clk 0:01:34.1]}
22... Qd7 {[%clk 0:01:52.8]} 23. Rd1 {[%clk 0:01:32.6]} 23... Rfd8 {[%clk
0:01:50]} 24. Nxf6+ {[%clk 0:01:23.6]} 24... gxf6 {[%clk 0:01:48.6]} 25. Qxh6
{[%clk 0:01:24.1]} 25... Qg7 {[%clk 0:01:45.6]} 26. Qe3 {[%clk 0:01:21]} 26...
Bd5 {[%clk 0:01:39.6]} 27. Bf1 {[%clk 0:01:19.3]} 27... Bc6 {[%clk 0:01:22.8]}
28. h3 {[%clk 0:01:14.3]} 28... Rxd1 {[%clk 0:01:18.1]} 29. Rxd1 {[%clk
0:01:13.6]} 29... Rb2 {[%clk 0:01:18.3]} 30. Rd8+ {[%clk 0:00:10]} 30... Kf7
{[%clk 0:00:55.9]} 31. Bc4+ {[%clk 0:00:03.7]} 31... Nxc4 {[%clk 0:00:38.3]} 32.
Qxa7+ {[%clk 0:00:04.6]} 32... Rb7 {[%clk 0:00:31.9]} 33. Qxb7+ {[%clk
0:00:02.3]} 33... Bxb7 {[%clk 0:00:31.1]} 34. Rd7+ {[%clk 0:00:03.2]} 34... Kg6
{[%clk 0:00:31.5]} 35. Rxg7+ {[%clk 0:00:03.9]} 35... Kxg7 {[%clk 0:00:31.9]}
36. g4 {[%clk 0:00:04.2]} 36... Kg6 {[%clk 0:00:28.1]} 37. Kf2 {[%clk
0:00:04.5]} 37... Ne5 {[%clk 0:00:24.6]} 38. Kg3 {[%clk 0:00:04.6]} 38... Bd5
{[%clk 0:00:20]} 39. a4 {[%clk 0:00:05.5]} 39... Bc6 {[%clk 0:00:19]} 40. a5
{[%clk 0:00:06.4]} 40... Bb5 {[%clk 0:00:18.9]} 41. h4 {[%clk 0:00:06.5]} 41...
Nc4 {[%clk 0:00:17.9]} 42. Kf4 {[%clk 0:00:06.3]} 42... Bd7 {[%clk 0:00:10.4]}
43. g5 {[%clk 0:00:07.2]} 43... f5 {[%clk 0:00:09.8]} 44. a6 {[%clk 0:00:07.3]}
44... Nb6 {[%clk 0:00:08.4]} 45. a7 {[%clk 0:00:06.9]} 45... Kh5 {[%clk
0:00:08.3]} 46. Ke5 {[%clk 0:00:06.7]} 46... Bc8 {[%clk 0:00:02.9]} 47. Kf6
{[%clk 0:00:07.6]} 47... f4 {[%clk 0:00:02.3]} 48. g6 {[%clk 0:00:08.2]} 48...
f3 {[%clk 0:00:02.5]} 49. g7 {[%clk 0:00:09.1]} 49... f2 {[%clk 0:00:03]} 50.
g8=Q {[%clk 0:00:09.8]} 50... f1=Q+ {[%clk 0:00:03.7]} 51. Ke7 {[%clk
0:00:10.7]} 51... Qe2+ {[%clk 0:00:02.6]} 52. Kd8 {[%clk 0:00:10.7]} 52... Qd3+
{[%clk 0:00:03.2]} 53. Kc7 {[%clk 0:00:09.5]} 53... Qc3+ {[%clk 0:00:03.5]} 54.
Kxb6 {[%clk 0:00:09.4]} 54... Qb4+ {[%clk 0:00:03]} 55. Kc7 {[%clk 0:00:09.4]}
55... Qb7+ {[%clk 0:00:03.6]} 56. Kd8 {[%clk 0:00:08.8]} 56... Qd7# {[%clk
0:00:03.6]} 0-1